[Event "Titled Tuesday Blitz June 8 2021"]
[White "Indjic, Aleksandar"]
[Black "Harshavardhan G B"]
[WhiteFideId "911925"]
[BlackFideId "25059009"]
[WhiteElo "2643"]
[BlackElo "1825"]
[Result "1-0"]
[Round "02"]
[TimeControl "180+1"]
[Date "2021.06.08"]
[WhiteClock "0:01:59"]
[BlackClock "0:01:08"]

1. d4 {[%clk 0:03:00]}  Nf6 {[%clk 0:02:56]} 2. Nf3 {[%clk 0:03:01]}  g6 {[%clk 0:02:55]} 3. Bg5 {[%clk 0:03:01]}  Bg7 {[%clk 0:02:55]} 4. c3 {[%clk 0:03:02]}  O-O {[%clk 0:02:53]} 5. Nbd2 {[%clk 0:03:02]}  d6 {[%clk 0:02:53]} 6. e3 {[%clk 0:03:02]}  Nbd7 {[%clk 0:02:52]} 7. Bd3 {[%clk 0:03:02]}  c5 {[%clk 0:02:52]} 8. O-O {[%clk 0:03:02]}  b6 {[%clk 0:02:52]} 9. e4 {[%clk 0:03:00]}  Bb7 {[%clk 0:02:48]} 10. h3 {[%clk 0:02:58]}  e5 {[%clk 0:02:39]} 11. dxe5 {[%clk 0:02:52]}  Nxe5 {[%clk 0:02:36]} 12. Nxe5 {[%clk 0:02:51]}  dxe5 {[%clk 0:02:37]} 13. Qe2 {[%clk 0:02:51]}  h6 {[%clk 0:02:33]} 14. Bh4 {[%clk 0:02:44]}  Qd7 {[%clk 0:02:25]} 15. Rfd1 {[%clk 0:02:34]}  Rad8 {[%clk 0:02:19]} 16. Nc4 {[%clk 0:02:20]}  Qe6 {[%clk 0:02:18]} 17. Bg3 {[%clk 0:02:19]}  Nh5 {[%clk 0:02:08]} 18. a4 {[%clk 0:02:19]}  Nf4 {[%clk 0:01:42]} 19. Bxf4 {[%clk 0:02:17]}  exf4 {[%clk 0:01:43]} 20. Nd2 {[%clk 0:02:17]}  f5 {[%clk 0:01:38]} 21. Bc4 {[%clk 0:02:15]}  Bd5 {[%clk 0:01:38]} 22. exd5 {[%clk 0:02:14]}  Qxe2 {[%clk 0:01:34]} 23. Bxe2 {[%clk 0:02:14]}  Kh7 {[%clk 0:01:35]} 24. Nc4 {[%clk 0:02:13]}  Rfe8 {[%clk 0:01:34]} 25. Kf1 {[%clk 0:02:13]}  g5 {[%clk 0:01:34]} 26. d6 {[%clk 0:02:13]}  Kg6 {[%clk 0:01:32]} 27. Rd5 {[%clk 0:02:11]}  h5 {[%clk 0:01:32]} 28. d7 {[%clk 0:02:11]}  Re7 {[%clk 0:01:31]} 29. Rad1 {[%clk 0:02:11]}  g4 {[%clk 0:01:31]} 30. Bd3 {[%clk 0:02:06]}  Rf7 {[%clk 0:01:30]} 31. Rxf5 {[%clk 0:02:04]}  Rxf5 {[%clk 0:01:29]} 32. Nd6 {[%clk 0:02:03]}  Bf8 {[%clk 0:01:12]} 33. Bxf5+ {[%clk 0:02:02]}  Kf6 {[%clk 0:01:08]} 34. Nb7 {[%clk 0:01:59]} 1-0


[Site "https://www.chess.com"]

[Event "Titled Tuesday Blitz June 8 2021"]
[White "Kamsky, Gata"]
[Black "Vlachos, Anatole"]
[WhiteFideId "2000024"]
[BlackFideId "26093189"]
[WhiteElo "2644"]
[BlackElo "2350"]
[Result "1-0"]
[Round "02"]
[TimeControl "180+1"]
[Date "2021.06.08"]
[WhiteClock "0:00:50"]
[BlackClock "0:00:06"]

1. d4 {[%clk 0:03:00]}  f6 {[%clk 0:02:59]} 2. e4 {[%clk 0:02:54]}  d5 {[%clk 0:02:54]} 3. Qh5+ {[%clk 0:02:52]}  g6 {[%clk 0:02:54]} 4. Qxd5 {[%clk 0:02:52]}  Qxd5 {[%clk 0:02:55]} 5. exd5 {[%clk 0:02:52]}  Bf5 {[%clk 0:02:53]} 6. c4 {[%clk 0:02:50]}  b5 {[%clk 0:02:50]} 7. cxb5 {[%clk 0:02:48]}  Bxb1 {[%clk 0:02:40]} 8. Rxb1 {[%clk 0:02:48]}  Nd7 {[%clk 0:02:41]} 9. Ne2 {[%clk 0:02:47]}  Nb6 {[%clk 0:02:41]} 10. Nc3 {[%clk 0:02:48]}  Bh6 {[%clk 0:02:35]} 11. Be3 {[%clk 0:02:46]}  Bxe3 {[%clk 0:02:32]} 12. fxe3 {[%clk 0:02:45]}  f5 {[%clk 0:02:33]} 13. g4 {[%clk 0:02:36]}  fxg4 {[%clk 0:02:30]} 14. h3 {[%clk 0:02:36]}  gxh3 {[%clk 0:02:27]} 15. Bxh3 {[%clk 0:02:35]}  Nf6 {[%clk 0:02:26]} 16. Be6 {[%clk 0:02:35]}  Rd8 {[%clk 0:02:23]} 17. e4 {[%clk 0:02:35]}  Nh5 {[%clk 0:02:23]} 18. Rf1 {[%clk 0:02:30]}  Ng7 {[%clk 0:02:17]} 19. Bf7+ {[%clk 0:02:20]}  Kd7 {[%clk 0:02:17]} 20. a4 {[%clk 0:02:19]}  Kc8 {[%clk 0:02:14]} 21. a5 {[%clk 0:02:17]}  Nc4 {[%clk 0:02:14]} 22. b4 {[%clk 0:02:16]}  Nd6 {[%clk 0:01:47]} 23. Ke2 {[%clk 0:02:12]}  Nh5 {[%clk 0:01:41]} 24. Be6+ {[%clk 0:02:07]}  Kb8 {[%clk 0:01:41]} 25. e5 {[%clk 0:02:07]}  Ng3+ {[%clk 0:01:40]} 26. Kd3 {[%clk 0:02:04]}  Nxf1 {[%clk 0:01:37]} 27. exd6 {[%clk 0:02:03]}  Ng3 {[%clk 0:01:36]} 28. d7 {[%clk 0:02:03]}  Rhf8 {[%clk 0:01:23]} 29. Kc4 {[%clk 0:01:43]}  Rf3 {[%clk 0:01:17]} 30. Re1 {[%clk 0:01:36]}  Rf1 {[%clk 0:00:14]} 31. Re3 {[%clk 0:01:30]}  Nh5 {[%clk 0:00:12]} 32. Ne4 {[%clk 0:01:25]}  Rc1+ {[%clk 0:00:12]} 33. Kb3 {[%clk 0:01:23]}  Nf4 {[%clk 0:00:12]} 34. Nc5 {[%clk 0:01:22]}  h5 {[%clk 0:00:07]} 35. Nd3 {[%clk 0:00:54]}  Nxd3 {[%clk 0:00:06]} 36. Rxd3 {[%clk 0:00:54]}  h4 {[%clk 0:00:06]} 37. Rf3 {[%clk 0:00:53]}  Rh1 {[%clk 0:00:03]} 38. Rf7 {[%clk 0:00:53]}  h3 {[%clk 0:00:04]} 39. Rxe7 {[%clk 0:00:52]}  h2 {[%clk 0:00:02]} 40. Re8 {[%clk 0:00:51]}  Rb1+ {[%clk 0:00:03]} 41. Ka2 {[%clk 0:00:51]}  h1=Q {[%clk 0:00:04]} 42. Rxd8+ {[%clk 0:00:50]}  Kb7 {[%clk 0:00:05]} 43. Rb8+ {[%clk 0:00:50]}  Kxb8 {[%clk 0:00:05]} 44. d8=Q+ {[%clk 0:00:51]}  Kb7 {[%clk 0:00:06]} 45. Qc8# {[%clk 0:00:50]} 1-0


[Site "https://www.chess.com"]

[Event "Titled Tuesday Blitz June 8 2021"]
[White "Kollars, Dmitrij"]
[Black "Piesik, Piotr"]
[WhiteFideId "12909572"]
[BlackFideId "1136194"]
[WhiteElo "2576"]
[BlackElo "2369"]
[Result "1-0"]
[Round "02"]
[TimeControl "180+1"]
[Date "2021.06.08"]
[WhiteClock "0:02:37"]
[BlackClock "0:02:34"]

1. c4 {[%clk 0:03:00]}  g6 {[%clk 0:02:47]} 2. Nc3 {[%clk 0:02:58]}  Bg7 {[%clk 0:02:47]} 3. g3 {[%clk 0:02:57]}  Nc6 {[%clk 0:02:47]} 4. Bg2 {[%clk 0:02:57]}  d6 {[%clk 0:02:47]} 5. e4 {[%clk 0:02:54]}  e5 {[%clk 0:02:47]} 6. Nge2 {[%clk 0:02:53]}  f5 {[%clk 0:02:47]} 7. d3 {[%clk 0:02:52]}  Nf6 {[%clk 0:02:47]} 8. O-O {[%clk 0:02:51]}  O-O {[%clk 0:02:46]} 9. h3 {[%clk 0:02:49]}  Be6 {[%clk 0:02:46]} 10. exf5 {[%clk 0:02:47]}  gxf5 {[%clk 0:02:45]} 11. f4 {[%clk 0:02:44]}  Qd7 {[%clk 0:02:45]} 12. Nd5 {[%clk 0:02:42]}  Bxd5 {[%clk 0:02:38]} 13. cxd5 {[%clk 0:02:42]}  Ne7 {[%clk 0:02:39]} 14. Qb3 {[%clk 0:02:40]}  Rab8 {[%clk 0:02:34]} 15. fxe5 {[%clk 0:02:37]} 1-0


[Site "https://www.chess.com"]

[Event "Titled Tuesday Blitz June 8 2021"]
[White "Lazavik, Denis"]
[Black "Khademalsharieh, Sarasadat"]
[WhiteFideId "13515110"]
[BlackFideId "12512214"]
[WhiteElo "2436"]
[BlackElo "2431"]
[Result "1-0"]
[Round "02"]
[TimeControl "180+1"]
[Date "2021.06.08"]
[WhiteClock "0:00:24"]
[BlackClock "0:00:33"]

1. d4 {[%clk 0:03:00]}  Nf6 {[%clk 0:02:58]} 2. c4 {[%clk 0:03:00]}  e6 {[%clk 0:02:58]} 3. Nf3 {[%clk 0:02:59]}  d5 {[%clk 0:02:56]} 4. Nc3 {[%clk 0:02:59]}  a6 {[%clk 0:02:55]} 5. cxd5 {[%clk 0:02:58]}  exd5 {[%clk 0:02:56]} 6. Bg5 {[%clk 0:02:58]}  Be6 {[%clk 0:02:49]} 7. e3 {[%clk 0:02:56]}  Nbd7 {[%clk 0:02:35]} 8. Bd3 {[%clk 0:02:55]}  h6 {[%clk 0:02:33]} 9. Bh4 {[%clk 0:02:53]}  Bd6 {[%clk 0:02:29]} 10. Qc2 {[%clk 0:02:45]}  Qb8 {[%clk 0:02:25]} 11. Bg3 {[%clk 0:02:41]}  c6 {[%clk 0:02:23]} 12. O-O {[%clk 0:02:40]}  Bxg3 {[%clk 0:02:20]} 13. hxg3 {[%clk 0:02:39]}  O-O {[%clk 0:02:21]} 14. Na4 {[%clk 0:02:26]}  Qd6 {[%clk 0:02:19]} 15. b4 {[%clk 0:02:20]}  Ne4 {[%clk 0:02:01]} 16. Nc5 {[%clk 0:02:15]}  Nexc5 {[%clk 0:01:31]} 17. bxc5 {[%clk 0:02:13]}  Qc7 {[%clk 0:01:29]} 18. Rab1 {[%clk 0:02:11]}  Rae8 {[%clk 0:01:28]} 19. Rb3 {[%clk 0:01:50]}  Ra8 {[%clk 0:01:14]} 20. Rfb1 {[%clk 0:01:46]}  Ra7 {[%clk 0:01:14]} 21. Qb2 {[%clk 0:01:01]}  Rb8 {[%clk 0:01:13]} 22. Ne1 {[%clk 0:01:01]}  Nf6 {[%clk 0:01:05]} 23. Rb6 {[%clk 0:00:57]}  Nd7 {[%clk 0:00:59]} 24. Rb3 {[%clk 0:00:57]}  Nf6 {[%clk 0:00:59]} 25. Nc2 {[%clk 0:00:57]}  Bc8 {[%clk 0:00:50]} 26. Nb4 {[%clk 0:00:50]}  Rba8 {[%clk 0:00:50]} 27. a3 {[%clk 0:00:47]}  Qe7 {[%clk 0:00:47]} 28. Na2 {[%clk 0:00:44]}  Ng4 {[%clk 0:00:45]} 29. Qe2 {[%clk 0:00:38]}  Qg5 {[%clk 0:00:43]} 30. f3 {[%clk 0:00:27]}  Qxe3+ {[%clk 0:00:37]} 31. Qxe3 {[%clk 0:00:26]}  Nxe3 {[%clk 0:00:38]} 32. Re1 {[%clk 0:00:26]}  Nc4 {[%clk 0:00:33]} 33. Re8# {[%clk 0:00:24]} 1-0


[Site "https://www.chess.com"]

[Event "Titled Tuesday Blitz June 8 2021"]
[White "Maksimenko, Viktor"]
[Black "Vignesh, N R"]
[WhiteFideId "13710478"]
[BlackFideId "25012215"]
[WhiteElo "2269"]
[BlackElo "2401"]
[Result "0-1"]
[Round "02"]
[TimeControl "180+1"]
[Date "2021.06.08"]
[WhiteClock "0:00:13"]
[BlackClock "0:01:27"]

1. d4 {[%clk 0:03:00]}  d5 {[%clk 0:02:58]} 2. c4 {[%clk 0:03:00]}  c6 {[%clk 0:02:58]} 3. Nf3 {[%clk 0:03:00]}  Nf6 {[%clk 0:02:58]} 4. Qb3 {[%clk 0:03:00]}  e6 {[%clk 0:02:55]} 5. Nbd2 {[%clk 0:02:57]}  Nbd7 {[%clk 0:02:55]} 6. g3 {[%clk 0:02:54]}  Be7 {[%clk 0:02:53]} 7. Bg2 {[%clk 0:02:54]}  O-O {[%clk 0:02:53]} 8. O-O {[%clk 0:02:54]}  b6 {[%clk 0:02:52]} 9. Qc2 {[%clk 0:02:33]}  Bb7 {[%clk 0:02:40]} 10. b3 {[%clk 0:02:25]}  Rc8 {[%clk 0:02:33]} 11. Bb2 {[%clk 0:02:24]}  c5 {[%clk 0:02:33]} 12. a4 {[%clk 0:01:18]}  dxc4 {[%clk 0:02:26]} 13. Nxc4 {[%clk 0:01:17]}  cxd4 {[%clk 0:02:21]} 14. Nxd4 {[%clk 0:01:15]}  Bxg2 {[%clk 0:02:21]} 15. Kxg2 {[%clk 0:01:16]}  Nc5 {[%clk 0:02:18]} 16. Rfd1 {[%clk 0:01:13]}  Qd5+ {[%clk 0:02:17]} 17. f3 {[%clk 0:01:07]}  Nxb3 {[%clk 0:02:13]} 18. Qxb3 {[%clk 0:00:57]}  Qxc4 {[%clk 0:02:13]} 19. Qxc4 {[%clk 0:00:55]}  Rxc4 {[%clk 0:02:14]} 20. Nb5 {[%clk 0:00:55]}  Rc2 {[%clk 0:02:07]} 21. Bxf6 {[%clk 0:00:32]}  Bxf6 {[%clk 0:02:08]} 22. Ra3 {[%clk 0:00:29]}  Rxe2+ {[%clk 0:02:06]} 23. Kh3 {[%clk 0:00:29]}  a5 {[%clk 0:01:58]} 24. Nd6 {[%clk 0:00:29]}  h5 {[%clk 0:01:36]} 25. Nc4 {[%clk 0:00:26]}  Rc8 {[%clk 0:01:31]} 26. Nxb6 {[%clk 0:00:13]}  Rcc2 {[%clk 0:01:30]} 27. Rh1 {[%clk 0:00:14]}  Bd4 {[%clk 0:01:29]} 28. g4 {[%clk 0:00:12]}  hxg4+ {[%clk 0:01:27]} 29. fxg4 {[%clk 0:00:13]}  Bxb6 {[%clk 0:01:27]} 0-1


[Site "https://www.chess.com"]

[Event "Titled Tuesday Blitz June 8 2021"]
[White "Morefield, Jason"]
[Black "Andreikin, Dmitry"]
[WhiteFideId "30920825"]
[BlackFideId "4158814"]
[WhiteElo "2171"]
[BlackElo "2782"]
[Result "0-1"]
[Round "02"]
[TimeControl "180+1"]
[Date "2021.06.08"]
[WhiteClock "0:00:21"]
[BlackClock "0:00:44"]

1. d4 {[%clk 0:03:00]}  e6 {[%clk 0:02:59]} 2. c4 {[%clk 0:03:00]}  Nf6 {[%clk 0:02:58]} 3. Nf3 {[%clk 0:02:59]}  b6 {[%clk 0:02:56]} 4. g3 {[%clk 0:02:59]}  Bb7 {[%clk 0:02:55]} 5. Bg2 {[%clk 0:02:58]}  Bb4+ {[%clk 0:02:56]} 6. Bd2 {[%clk 0:02:58]}  a5 {[%clk 0:02:57]} 7. O-O {[%clk 0:02:58]}  O-O {[%clk 0:02:57]} 8. a3 {[%clk 0:02:59]}  Bxd2 {[%clk 0:02:54]} 9. Qxd2 {[%clk 0:02:58]}  d6 {[%clk 0:02:48]} 10. Nc3 {[%clk 0:02:55]}  Ne4 {[%clk 0:02:48]} 11. Nxe4 {[%clk 0:02:53]}  Bxe4 {[%clk 0:02:48]} 12. Qe3 {[%clk 0:02:54]}  Bb7 {[%clk 0:02:47]} 13. Rfd1 {[%clk 0:02:53]}  a4 {[%clk 0:02:43]} 14. Rac1 {[%clk 0:02:52]}  Nd7 {[%clk 0:02:42]} 15. c5 {[%clk 0:02:30]}  bxc5 {[%clk 0:02:32]} 16. dxc5 {[%clk 0:02:30]}  Bxf3 {[%clk 0:02:31]} 17. Bxf3 {[%clk 0:02:29]}  d5 {[%clk 0:02:31]} 18. c6 {[%clk 0:02:19]}  Nf6 {[%clk 0:02:27]} 19. Qc5 {[%clk 0:02:15]}  Qb8 {[%clk 0:02:22]} 20. Rd2 {[%clk 0:02:11]}  Ra6 {[%clk 0:02:11]} 21. Rcc2 {[%clk 0:02:00]}  h6 {[%clk 0:02:06]} 22. Rd4 {[%clk 0:01:59]}  Qa8 {[%clk 0:02:02]} 23. Rb4 {[%clk 0:01:54]}  Rb8 {[%clk 0:02:01]} 24. e3 {[%clk 0:01:29]}  Rbb6 {[%clk 0:01:59]} 25. Rxb6 {[%clk 0:01:26]}  Rxb6 {[%clk 0:02:00]} 26. Kg2 {[%clk 0:01:19]}  Ne8 {[%clk 0:01:28]} 27. e4 {[%clk 0:01:11]}  dxe4 {[%clk 0:01:28]} 28. Bxe4 {[%clk 0:01:12]}  Nd6 {[%clk 0:01:28]} 29. Bf3 {[%clk 0:01:04]}  Rb3 {[%clk 0:01:19]} 30. Rd2 {[%clk 0:00:49]}  Qb8 {[%clk 0:01:12]} 31. Qd4 {[%clk 0:00:35]}  Qb5 {[%clk 0:01:12]} 32. Rc2 {[%clk 0:00:29]}  Rxf3 {[%clk 0:00:55]} 33. Qxd6 {[%clk 0:00:22]}  cxd6 {[%clk 0:00:45]} 34. c7 {[%clk 0:00:21]}  Rxf2+ {[%clk 0:00:44]} 0-1


[Site "https://www.chess.com"]

[Event "Titled Tuesday Blitz June 8 2021"]
[White "Narayanan.S.L"]
[Black "Fayzullaev, Akmal"]
[WhiteFideId "5058422"]
[BlackFideId "14200554"]
[WhiteElo "2617"]
[BlackElo "2264"]
[Result "1-0"]
[Round "02"]
[TimeControl "180+1"]
[Date "2021.06.08"]
[WhiteClock "0:00:53"]
[BlackClock "0:00:40"]

1. e4 {[%clk 0:02:59]}  c6 {[%clk 0:02:54]} 2. f4 {[%clk 0:02:59]}  d5 {[%clk 0:02:55]} 3. e5 {[%clk 0:02:59]}  Bf5 {[%clk 0:02:54]} 4. d4 {[%clk 0:02:59]}  e6 {[%clk 0:02:53]} 5. Bd3 {[%clk 0:02:59]}  Bxd3 {[%clk 0:02:52]} 6. Qxd3 {[%clk 0:03:00]}  c5 {[%clk 0:02:50]} 7. c3 {[%clk 0:03:00]}  Nc6 {[%clk 0:02:48]} 8. Ne2 {[%clk 0:03:01]}  cxd4 {[%clk 0:02:46]} 9. cxd4 {[%clk 0:02:59]}  Nh6 {[%clk 0:02:43]} 10. Nbc3 {[%clk 0:02:58]}  Be7 {[%clk 0:02:41]} 11. Be3 {[%clk 0:02:52]}  O-O {[%clk 0:02:40]} 12. O-O {[%clk 0:02:52]}  f6 {[%clk 0:02:40]} 13. h3 {[%clk 0:02:49]}  f5 {[%clk 0:02:23]} 14. Kh1 {[%clk 0:02:45]}  Rc8 {[%clk 0:02:23]} 15. Rg1 {[%clk 0:02:45]}  Qe8 {[%clk 0:02:21]} 16. Raf1 {[%clk 0:02:32]}  a6 {[%clk 0:02:22]} 17. Qd1 {[%clk 0:01:38]}  Na5 {[%clk 0:02:20]} 18. b3 {[%clk 0:01:37]}  b5 {[%clk 0:02:16]} 19. Qd2 {[%clk 0:01:34]}  Nc6 {[%clk 0:02:16]} 20. Rc1 {[%clk 0:01:32]}  Bb4 {[%clk 0:02:16]} 21. Rc2 {[%clk 0:01:31]}  Qh5 {[%clk 0:02:07]} 22. Rgc1 {[%clk 0:01:31]}  Ne7 {[%clk 0:02:05]} 23. Qd3 {[%clk 0:01:29]}  Ba3 {[%clk 0:02:05]} 24. Rf1 {[%clk 0:01:27]}  Nc6 {[%clk 0:02:05]} 25. Rd2 {[%clk 0:01:25]}  Rf7 {[%clk 0:01:58]} 26. Qb1 {[%clk 0:01:12]}  Rfc7 {[%clk 0:01:56]} 27. Rdd1 {[%clk 0:01:11]}  b4 {[%clk 0:01:52]} 28. Nxd5 {[%clk 0:01:12]}  exd5 {[%clk 0:01:50]} 29. Qd3 {[%clk 0:01:12]}  Nb8 {[%clk 0:01:44]} 30. Bc1 {[%clk 0:01:03]}  Bxc1 {[%clk 0:01:38]} 31. Rxc1 {[%clk 0:01:04]}  Rxc1 {[%clk 0:01:37]} 32. Rxc1 {[%clk 0:01:05]}  Rxc1+ {[%clk 0:01:38]} 33. Nxc1 {[%clk 0:01:06]}  Qh4 {[%clk 0:01:36]} 34. Qc2 {[%clk 0:01:00]}  Nd7 {[%clk 0:01:30]} 35. Nd3 {[%clk 0:00:57]}  Qg3 {[%clk 0:01:24]} 36. e6 {[%clk 0:00:57]}  Nf8 {[%clk 0:01:00]} 37. e7 {[%clk 0:00:57]}  Qe3 {[%clk 0:01:00]} 38. Ne5 {[%clk 0:00:56]}  Qe1+ {[%clk 0:00:51]} 39. Kh2 {[%clk 0:00:56]}  Ng4+ {[%clk 0:00:52]} 40. Nxg4 {[%clk 0:00:54]}  fxg4 {[%clk 0:00:53]} 41. exf8=Q+ {[%clk 0:00:54]}  Kxf8 {[%clk 0:00:54]} 42. Qf5+ {[%clk 0:00:55]}  Kg8 {[%clk 0:00:53]} 43. Qxg4 {[%clk 0:00:54]}  Qe4 {[%clk 0:00:49]} 44. Qc8+ {[%clk 0:00:52]}  Kf7 {[%clk 0:00:50]} 45. Qc7+ {[%clk 0:00:52]}  Kg6 {[%clk 0:00:49]} 46. Qe5 {[%clk 0:00:52]}  Qc2 {[%clk 0:00:41]} 47. Qe6+ {[%clk 0:00:52]}  Kh5 {[%clk 0:00:40]} 48. Qg4+ {[%clk 0:00:52]}  Kh6 {[%clk 0:00:40]} 49. Qg5# {[%clk 0:00:53]} 1-0


[Site "https://www.chess.com"]

[Event "Titled Tuesday Blitz June 8 2021"]
[White "Ozkan, Ervin"]
[Black "Perez Ponsa, Federico"]
[WhiteFideId "6306004"]
[BlackFideId "117927"]
[WhiteElo "2226"]
[BlackElo "2672"]
[Result "0-1"]
[Round "02"]
[TimeControl "180+1"]
[Date "2021.06.08"]
[WhiteClock "0:00:02"]
[BlackClock "0:00:21"]

1. e4 {[%clk 0:03:00]}  c5 {[%clk 0:02:58]} 2. Nf3 {[%clk 0:02:59]}  d6 {[%clk 0:02:59]} 3. Bb5+ {[%clk 0:02:57]}  Nd7 {[%clk 0:02:58]} 4. d4 {[%clk 0:02:56]}  cxd4 {[%clk 0:02:58]} 5. Qxd4 {[%clk 0:02:55]}  a6 {[%clk 0:02:58]} 6. Bxd7+ {[%clk 0:02:53]}  Bxd7 {[%clk 0:02:59]} 7. O-O {[%clk 0:02:52]}  Rc8 {[%clk 0:02:42]} 8. c4 {[%clk 0:02:48]}  Nf6 {[%clk 0:02:35]} 9. Bg5 {[%clk 0:02:42]}  e6 {[%clk 0:02:32]} 10. Nc3 {[%clk 0:02:39]}  Qc7 {[%clk 0:02:21]} 11. Bxf6 {[%clk 0:01:58]}  gxf6 {[%clk 0:02:21]} 12. Qxf6 {[%clk 0:01:57]}  Rg8 {[%clk 0:02:21]} 13. Nd5 {[%clk 0:01:49]}  exd5 {[%clk 0:01:52]} 14. exd5 {[%clk 0:01:50]}  Be7 {[%clk 0:01:53]} 15. Rfe1 {[%clk 0:01:45]}  Bh3 {[%clk 0:01:53]} 16. Ng5 {[%clk 0:01:23]}  Be6 {[%clk 0:01:15]} 17. Rxe6 {[%clk 0:00:47]}  Rxg5 {[%clk 0:01:12]} 18. Qxg5 {[%clk 0:00:29]}  fxe6 {[%clk 0:01:11]} 19. Qg8+ {[%clk 0:00:29]}  Bf8 {[%clk 0:01:09]} 20. Qxe6+ {[%clk 0:00:27]}  Kd8 {[%clk 0:01:09]} 21. b3 {[%clk 0:00:17]}  Qd7 {[%clk 0:01:02]} 22. Qf6+ {[%clk 0:00:15]}  Kc7 {[%clk 0:01:03]} 23. Re1 {[%clk 0:00:13]}  Re8 {[%clk 0:01:02]} 24. Re6 {[%clk 0:00:12]}  Rxe6 {[%clk 0:00:57]} 25. dxe6 {[%clk 0:00:11]}  Qg7 {[%clk 0:00:57]} 26. e7 {[%clk 0:00:06]}  Qxe7 {[%clk 0:00:50]} 27. Qa1 {[%clk 0:00:02]}  Bg7 {[%clk 0:00:49]} 28. Qd1 {[%clk 0:00:02]}  Qe4 {[%clk 0:00:48]} 29. g3 {[%clk 0:00:02]}  Bd4 {[%clk 0:00:49]} 30. Qd2 {[%clk 0:00:01]}  Bc5 {[%clk 0:00:42]} 31. h4 {[%clk 0:00:01]}  Qf3 {[%clk 0:00:42]} 32. Kf1 {[%clk 0:00:01]}  h5 {[%clk 0:00:39]} 33. Ke1 {[%clk 0:00:01]}  a5 {[%clk 0:00:34]} 34. Kf1 {[%clk 0:00:02]}  b6 {[%clk 0:00:30]} 35. Qc2 {[%clk 0:00:02]}  Qf7 {[%clk 0:00:26]} 36. Qe2 {[%clk 0:00:02]}  Qf5 {[%clk 0:00:25]} 37. Kg2 {[%clk 0:00:02]}  d5 {[%clk 0:00:22]} 38. cxd5 {[%clk 0:00:02]}  Qxd5+ {[%clk 0:00:23]} 39. Qf3 {[%clk 0:00:03]}  Kd6 {[%clk 0:00:23]} 40. Qxd5+ {[%clk 0:00:02]}  Kxd5 {[%clk 0:00:24]} 41. f3 {[%clk 0:00:03]}  Ke5 {[%clk 0:00:22]} 42. g4 {[%clk 0:00:03]}  hxg4 {[%clk 0:00:20]} 43. fxg4 {[%clk 0:00:04]}  Kf4 {[%clk 0:00:21]} 44. g5 {[%clk 0:00:04]}  Kg4 {[%clk 0:00:21]} 45. g6 {[%clk 0:00:04]}  Bf8 {[%clk 0:00:21]} 46. Kf2 {[%clk 0:00:03]}  Kxh4 {[%clk 0:00:21]} 47. Kf3 {[%clk 0:00:02]}  Kg5 {[%clk 0:00:21]} 0-1


[Site "https://www.chess.com"]

[Event "Titled Tuesday Blitz June 8 2021"]
[White "Trent, Lawrence"]
[Black "Gavrilescu, David"]
[WhiteFideId "408638"]
[BlackFideId "1227190"]
[WhiteElo "2474"]
[BlackElo "2370"]
[Result "0-1"]
[Round "02"]
[TimeControl "180+1"]
[Date "2021.06.08"]
[WhiteClock "0:00:53"]
[BlackClock "0:01:35"]

1. d4 {[%clk 0:03:00]}  d5 {[%clk 0:02:59]} 2. Bg5 {[%clk 0:02:48]}  c5 {[%clk 0:02:55]} 3. Nc3 {[%clk 0:02:41]}  Nc6 {[%clk 0:02:47]} 4. Nf3 {[%clk 0:02:40]}  cxd4 {[%clk 0:02:39]} 5. Nxd4 {[%clk 0:02:40]}  f6 {[%clk 0:02:39]} 6. Bh4 {[%clk 0:02:22]}  e5 {[%clk 0:02:37]} 7. Nxc6 {[%clk 0:02:22]}  bxc6 {[%clk 0:02:38]} 8. e3 {[%clk 0:02:17]}  Nh6 {[%clk 0:02:33]} 9. Bd3 {[%clk 0:02:11]}  Nf5 {[%clk 0:02:30]} 10. Bg3 {[%clk 0:02:09]}  h5 {[%clk 0:02:25]} 11. Qf3 {[%clk 0:01:49]}  g6 {[%clk 0:02:18]} 12. h3 {[%clk 0:01:23]}  e4 {[%clk 0:02:18]} 13. Nxe4 {[%clk 0:01:23]}  dxe4 {[%clk 0:02:18]} 14. Qxe4+ {[%clk 0:01:23]}  Kf7 {[%clk 0:02:18]} 15. O-O-O {[%clk 0:01:19]}  Qe8 {[%clk 0:02:09]} 16. Bc4+ {[%clk 0:01:17]}  Be6 {[%clk 0:02:09]} 17. Bf4 {[%clk 0:01:11]}  Bxc4 {[%clk 0:01:41]} 18. Qxc4+ {[%clk 0:01:11]}  Qe6 {[%clk 0:01:42]} 19. Qa6 {[%clk 0:01:11]}  Be7 {[%clk 0:01:39]} 20. g4 {[%clk 0:01:09]}  hxg4 {[%clk 0:01:39]} 21. hxg4 {[%clk 0:01:10]}  Rxh1 {[%clk 0:01:39]} 22. Rxh1 {[%clk 0:01:11]}  Ng7 {[%clk 0:01:38]} 23. f3 {[%clk 0:01:11]}  g5 {[%clk 0:01:37]} 24. Bg3 {[%clk 0:01:06]}  Qxe3+ {[%clk 0:01:36]} 25. Kb1 {[%clk 0:01:07]}  Qxf3 {[%clk 0:01:35]} 26. Rg1 {[%clk 0:01:04]}  Rd8 {[%clk 0:01:35]} 27. b3 {[%clk 0:00:56]}  Rd1+ {[%clk 0:01:34]} 28. Rxd1 {[%clk 0:00:56]}  Qxd1+ {[%clk 0:01:35]} 29. Kb2 {[%clk 0:00:57]}  Qd4+ {[%clk 0:01:35]} 30. Kb1 {[%clk 0:00:58]}  Qxg4 {[%clk 0:01:35]} 31. Bb8 {[%clk 0:00:56]}  Qd1+ {[%clk 0:01:33]} 32. Kb2 {[%clk 0:00:56]}  Qd4+ {[%clk 0:01:34]} 33. Kb1 {[%clk 0:00:55]}  Qb6 {[%clk 0:01:34]} 34. Qc4+ {[%clk 0:00:54]}  Ne6 {[%clk 0:01:35]} 35. Bg3 {[%clk 0:00:53]}  Qg1+ {[%clk 0:01:35]} 0-1


[Site "https://www.chess.com"]

[Event "Titled Tuesday Blitz June 8 2021"]
[White "Vidit, Santosh Gujrathi"]
[Black "Matinian, Nikita"]
[WhiteFideId "5029465"]
[BlackFideId "24129100"]
[WhiteElo "2735"]
[BlackElo "2410"]
[Result "1-0"]
[Round "02"]
[TimeControl "180+1"]
[Date "2021.06.08"]
[WhiteClock "0:01:04"]
[BlackClock "0:01:22"]

1. e4 {[%clk 0:03:00]}  d6 {[%clk 0:02:59]} 2. d4 {[%clk 0:03:00]}  g6 {[%clk 0:02:59]} 3. Nc3 {[%clk 0:03:00]}  a6 {[%clk 0:02:59]} 4. Be3 {[%clk 0:02:58]}  Bg7 {[%clk 0:02:58]} 5. Qd2 {[%clk 0:02:57]}  b5 {[%clk 0:02:56]} 6. f3 {[%clk 0:02:54]}  Nd7 {[%clk 0:02:55]} 7. h4 {[%clk 0:02:51]}  h5 {[%clk 0:02:54]} 8. Nh3 {[%clk 0:02:51]}  Bb7 {[%clk 0:02:49]} 9. Ng5 {[%clk 0:02:51]}  e6 {[%clk 0:02:49]} 10. O-O-O {[%clk 0:02:45]}  Ne7 {[%clk 0:02:49]} 11. Kb1 {[%clk 0:02:35]}  c6 {[%clk 0:02:44]} 12. Ne2 {[%clk 0:02:20]}  Nb6 {[%clk 0:02:44]} 13. Nf4 {[%clk 0:02:17]}  Qd7 {[%clk 0:02:43]} 14. d5 {[%clk 0:02:11]}  Na4 {[%clk 0:02:25]} 15. dxe6 {[%clk 0:02:02]}  fxe6 {[%clk 0:02:26]} 16. c3 {[%clk 0:01:34]}  Bf6 {[%clk 0:01:55]} 17. Qxd6 {[%clk 0:01:28]}  Qxd6 {[%clk 0:01:52]} 18. Rxd6 {[%clk 0:01:28]}  O-O {[%clk 0:01:41]} 19. Nfxe6 {[%clk 0:01:25]}  Rfc8 {[%clk 0:01:40]} 20. Nf4 {[%clk 0:01:15]}  Bxg5 {[%clk 0:01:25]} 21. hxg5 {[%clk 0:01:14]}  Kf7 {[%clk 0:01:26]} 22. Rf6+ {[%clk 0:01:13]}  Kg7 {[%clk 0:01:26]} 23. Bd4 {[%clk 0:01:10]}  c5 {[%clk 0:01:23]} 24. Rxg6+ {[%clk 0:01:04]}  Kf7 {[%clk 0:01:23]} 25. Rg7+ {[%clk 0:01:03]}  Ke8 {[%clk 0:01:22]} 26. Bf6 {[%clk 0:01:04]} 1-0


[Site "https://www.chess.com"]